Workbook

Sheet Sheet1
A1: Starting Date | B1: 2025-01-01
A3: Ending date of payroll | B3: Days to Date | C3: Item | D3: YTD Amount | E3: Daily | F3: Weekly | G3: Bi-Weekly | H3: Monthly | I3: Annually
B4: =IF(A4="","",_xlfn.DAYS(A4,B1)) ->  | C4: Gross Pay | E4: =IF($D4="","",D4/$B$4) ->  | F4: =IF($D4="","",E4*7) ->  | G4: =IF($D4="","",E4*14) ->  | H4: =IF($D4="","",F4*4.3) ->  | I4: =IF($D4="","",H4*12) -> 
C5: W-4 WH | E5: =IF($D5="","",D5/$B$4) ->  | F5: =IF($D5="","",E5*7) ->  | G5: =IF($D5="","",E5*14) ->  | H5: =IF($D5="","",F5*4.3) ->  | I5: =IF($D5="","",H5*12) -> 
C6: State W/H
C7: Local W/H
C8: Medical W/H
C9: Retirement | E9: =IF($D9="","",D9/$B$4) ->  | F9: =IF($D9="","",E9*7) ->  | G9: =IF($D9="","",E9*14) -> 

Sheet Sheet2
R1: Item | S1: Monthly
C2: Jan | F2: Dec | I2: Nov | L2: Oct | R2: Gross Pay | S2: 4019.592917
C3: 3994.2 | F3: 5276.32 | I3: 5640 | L3: 6170.08 | R3: W-4 WH | S3: 315.725
B4: refund | C4: 36.89 | E4: CashApp | F4: 122.81 | H4: Zelle | I4: 200 | K4: Zelle | L4: 40 | R4: State W/H | S4: 170.9923611
B5: Zelle | C5: 340 | E5: Zelle | F5: 100 | H5: Zelle | I5: 300 | K5: Remote Online Deposit | L5: 309.76 | R5: Local W/H
B6: Zelle | C6: 20 | E6: Zelle | F6: 1240 | H6: CashApp | I6: 122.81 | K6: CashApp | L6: 122.81 | R6: Medical W/H
B7: ATM Cash | C7: 202 | E7: CashApp | F7: 43.03 | H7: CashApp | I7: 10.81 | K7: Zelle | L7: 560 | R7: Retirement
H8: Reversal | I8: 25 | K8: CashApp | L8: 19.65 | R8: Accident, Critical Ill, STD, Hospital | S8: 82.73333333
K9: Zelle | L9: 1034 | R9: Net | S9: =S2-SUM(S3:S8) -> 3450.142222
K10: Zelle | L10: 100
B13: Zelle | C13: =SUMIF(B4:B10,$B$13,C4:C10) -> 360 | F13: =SUMIF(E4:E10,$B$13,F4:F10) -> 1340 | I13: =SUMIF(H4:H10,$B$13,I4:I10) -> 500 | L13: =SUMIF(K4:K10,$B$13,L4:L10) -> 1734
B14: CashApp | C14: =SUMIF(B4:B10,$B$14,C4:C10) -> 0 | F14: =SUMIF(E4:E10,$B$14,F4:F10) -> 165.84 | I14: =SUMIF(H4:H10,$B$14,I4:I10) -> 133.62 | L14: =SUMIF(K4:K10,$B$14,L4:L10) -> 142.46
C18: =C3-SUM(C4:C17) -> 3035.31 | F18: =F3-SUM(F4:F17) -> 2264.64 | I18: =I3-SUM(I4:I17) -> 4347.76 | L18: =L3-SUM(L4:L17) -> 2107.4 | N18: =SUM(C18:L18)/4 -> 2938.7775
B25: Zelle Average | C25: =AVERAGE(C13:L13) -> 983.5
B26: Zelle Average | C26: =AVERAGE(C13:I13) -> 733.3333333
